bitfinex/quotes_SOLUSD_20230116
["timestamp","ask_amount","ask_price","bid_price","bid_amount"]
[1673834625567,20.0,23.301,23.289,20.0]
[1673834625777,21.46196354,23.302,23.29,17.0]
[1673834625995,20.0,23.301,23.29,17.0]
[1673834626513,21.46196354,23.302,23.29,17.0]
[1673834626709,32.18,23.316,23.29,17.0]
[1673834626921,21.46196354,23.305,23.29,17.0]
[1673834628178,20.0,23.304,23.29,17.0]
[1673834628387,52.2,23.304,23.29,17.0]
[1673834628829,21.46196354,23.303,23.288,20.0]
[1673834629033,20.0,23.302,23.288,20.0]
[1673834629643,21.46196354,23.302,23.288,20.0]
[1673834630278,20.0,23.301,23.288,20.0]
[1673834630727,20.0,23.301,23.289,17.0]
[1673834631043,32.18,23.317,23.289,17.0]
[1673834631231,21.46196354,23.308,23.29,32.22]
[1673834631441,21.46196354,23.308,23.292,20.0]
[1673834631664,21.46196354,23.308,23.293,17.0]
[1673834634186,20.0,23.309,23.293,17.0]
[1673834634394,41.46196354,23.315,23.294,20.0]
[1673834634590,41.46196354,23.315,23.295,49.21]
[1673834634800,20.0,23.315,23.295,49.21]
[1673834635026,21.46196354,23.314,23.296,20.0]
[1673834635234,20.0,23.313,23.297,17.0]
[1673834635852,21.46196354,23.312,23.297,17.0]
[1673834636067,21.46196354,23.312,23.296,119.9617]
[1673834636298,21.46196354,23.312,23.292,52.21]
[1673834636299,52.19,23.311,23.292,20.0]
[1673834636511,20.0,23.31,23.29,20.0]
[1673834636703,20.0,23.309,23.29,20.0]
[1673834636907,53.64196354,23.316,23.291,32.22]
[1673834637138,21.46196354,23.316,23.291,32.22]
[1673834637346,20.0,23.315,23.292,37.0]
[1673834637662,32.18,23.319,23.293,32.21]
[1673834637873,32.18,23.319,23.294,17.0]
[1673834638195,32.18,23.319,23.295,52.21]
[1673834638401,32.18,23.319,23.297,20.0]
[1673834638714,21.46196354,23.318,23.298,244.0675]
[1673834639038,20.0,23.317,23.298,244.0675]
[1673834639222,52.18,23.316,23.298,227.0675]
[1673834639428,17.0,23.315,23.298,227.0675]
[1673834639765,20.0,23.314,23.298,227.0675]
[1673834639956,32.18,23.319,23.298,227.0675]
[1673834640168,21.46196354,23.314,23.298,227.0675]
[1673834640384,21.46196354,23.314,23.299,20.0]
[1673834640791,21.46196354,23.314,23.298,259.2775]
[1673834640792,20.0,23.313,23.298,227.0675]
[1673834641001,32.19,23.312,23.298,227.0675]
[1673834641215,20.0,23.311,23.298,227.0675]
[1673834641449,41.46196354,23.311,23.292,20.0]
[1673834641656,20.0,23.311,23.293,32.21]
[1673834641870,20.0,23.317,23.293,32.21]
[1673834642267,21.46196354,23.325,23.294,20.0]
[1673834642473,52.17,23.324,23.295,52.21]
[1673834642708,52.17,23.324,23.296,20.0]
[1673834642912,21.46196354,23.323,23.297,49.21]
[1673834643121,53.63196354,23.323,23.297,49.21]
[1673834643322,37.0,23.322,23.298,20.0]
[1673834643532,37.0,23.322,23.299,49.21]
[1673834643758,24.99,23.32,23.298,134.2023]
[1673834643953,69.18,23.319,23.298,114.2023]
[1673834644170,69.18,23.319,23.295,20.0]
[1673834644374,24.83,23.31,23.295,20.0]
[1673834644592,37.0,23.309,23.295,20.0]
[1673834644911,21.46196354,23.308,23.288,32.22]
[1673834645132,69.19,23.307,23.282,32.23]
[1673834645334,69.19,23.307,23.286,116.5308]
[1673834645647,21.46196354,23.306,23.286,116.5308]
[1673834645972,69.2,23.305,23.286,116.5308]
[1673834646494,52.2,23.305,23.286,116.5308]
[1673834646700,21.46196354,23.304,23.286,116.5308]
[1673834646890,52.2,23.303,23.286,116.5308]
[1673834647098,21.46196354,23.304,23.286,116.5308]
[1673834647329,20.0,23.303,23.289,20.0]
[1673834647527,20.0,23.303,23.29,17.0]
[1673834648783,21.46196354,23.305,23.29,17.0]
[1673834649102,20.0,23.304,23.29,17.0]
[1673834650150,24.83,23.31,23.291,32.22]
[1673834650358,32.18,23.319,23.293,20.0]
[1673834650567,21.46196354,23.314,23.294,49.21]
[1673834650901,21.46196354,23.318,23.294,49.21]
[1673834651112,32.18,23.317,23.295,20.0]
[1673834651298,32.18,23.317,23.297,20.0]
[1673834651513,32.18,23.317,23.298,17.0]
[1673834651724,32.18,23.319,23.298,17.0]
[1673834652049,32.18,23.319,23.299,20.0]
[1673834652262,21.46196354,23.321,23.301,20.0]
[1673834652460,32.16,23.329,23.302,37.0]
[1673834652665,53.62196354,23.33,23.303,32.2]
[1673834652881,21.46196354,23.33,23.304,17.0]
[1673834653100,21.46196354,23.33,23.306,20.0]
[1673834653308,21.46196354,23.33,23.307,49.19]
[1673834653517,46.45196354,23.33,23.308,119.5277]
[1673834653735,32.16,23.329,23.309,17.0]
[1673834653928,17.0,23.328,23.309,17.0]
[1673834654142,32.17,23.327,23.309,17.0]
[1673834654355,17.0,23.326,23.309,17.0]
[1673834654565,32.17,23.325,23.309,17.0]
[1673834654784,32.17,23.325,23.301,20.0]
[1673834654785,20.0,23.324,23.301,20.0]
[1673834655000,24.99,23.32,23.301,139.6607]
[1673834655189,20.0,23.318,23.301,119.6607]
[1673834655398,49.18,23.317,23.301,119.6607]
[1673834655715,20.0,23.316,23.296,32.21]
[1673834655939,24.99,23.31,23.294,119.6607]
[1673834656156,69.19,23.309,23.294,119.6607]
[1673834656471,52.19,23.309,23.294,119.6607]
[1673834656660,21.46196354,23.308,23.294,119.6607]
[1673834658368,21.46196354,23.308,23.288,52.22]
[1673834658369,17.0,23.307,23.288,52.22]
[1673834658556,20.0,23.306,23.284,108.556]
[1673834658889,24.99,23.3,23.284,108.556]
[1673834659101,20.0,23.299,23.278,32.23]
[1673834659292,32.21,23.298,23.277,108.556]
[1673834659628,20.0,23.297,23.277,108.556]
[1673834659831,32.21,23.296,23.277,108.556]
[1673834660026,20.0,23.295,23.277,108.556]
[1673834660240,20.0,23.295,23.278,20.0]
[1673834660450,70.67196354,23.294,23.278,20.0]
[1673834660805,24.82,23.29,23.278,20.0]
[1673834661181,20.0,23.289,23.278,20.0]
[1673834661828,20.0,23.289,23.273,20.0]
[1673834662024,20.0,23.289,23.272,108.556]
[1673834662238,20.0,23.288,23.267,32.25]
[1673834662447,20.0,23.288,23.266,113.9798]
[1673834662448,69.22,23.287,23.266,113.9798]
[1673834662971,20.0,23.285,23.266,113.9798]
[1673834663296,20.0,23.285,23.258,32.26]
[1673834663297,24.82,23.28,23.258,32.26]
[1673834663502,37.0,23.279,23.259,113.9798]
[1673834663821,37.0,23.279,23.26,22.26]
[1673834664039,21.46196354,23.278,23.259,113.9798]
[1673834664573,17.0,23.277,23.259,113.9798]
[1673834664753,17.0,23.277,23.26,20.0]
[1673834664970,17.0,23.278,23.26,20.0]
[1673834665593,38.46196354,23.278,23.26,20.0]
[1673834666219,20.0,23.279,23.26,20.0]
[1673834666436,20.0,23.279,23.261,17.0]
[1673834666648,20.0,23.279,23.262,32.26]
[1673834666851,20.0,23.279,23.263,17.0]
[1673834667068,20.0,23.279,23.264,20.0]
[1673834667817,20.0,23.279,23.265,17.0]
[1673834669372,20.0,23.279,23.264,20.0]
[1673834669583,20.0,23.279,23.265,17.0]
[1673834670212,20.0,23.279,23.264,20.0]
[1673834670426,64.75753654,23.279,23.264,20.0]
[1673834670652,20.0,23.279,23.264,20.0]
[1673834671906,24.83,23.29,23.265,49.25]
[1673834672230,73.68196354,23.289,23.267,20.0]
[1673834672444,73.68196354,23.289,23.268,49.25]
[1673834672639,52.22,23.289,23.268,17.0]
[1673834672857,21.46196354,23.288,23.268,17.0]
[1673834673071,64.75753654,23.289,23.269,20.0]
[1673834673274,64.75753654,23.289,23.27,17.0]
[1673834673489,96.97753654,23.289,23.27,127.6506]
[1673834673918,21.46196354,23.288,23.271,20.0]
[1673834674126,21.46196354,23.288,23.272,17.0]
[1673834674446,52.22,23.289,23.272,17.0]
[1673834674643,20.0,23.289,23.272,17.0]
[1673834674837,20.0,23.289,23.271,20.0]
[1673834675056,76.97753654,23.288,23.271,20.0]
[1673834675262,20.0,23.287,23.271,20.0]
[1673834675491,32.22,23.286,23.271,20.0]
[1673834675695,20.0,23.285,23.269,20.0]
[1673834676019,32.23,23.284,23.269,20.0]
[1673834676217,37.0,23.283,23.267,20.0]
[1673834676754,21.46196354,23.282,23.267,20.0]
[1673834676970,20.0,23.281,23.267,20.0]
[1673834677369,24.99,23.28,23.267,20.0]
[1673834677683,20.0,23.279,23.263,20.0]
[1673834678209,21.46196354,23.278,23.263,20.0]
[1673834678636,20.0,23.279,23.263,20.0]
[1673834678841,21.46196354,23.278,23.263,20.0]
[1673834679054,17.0,23.277,23.259,52.26]
[1673834679376,17.0,23.277,23.256,32.26]
[1673834679693,126.7225387,23.276,23.253,32.27]
[1673834679889,20.0,23.274,23.254,20.0]
[1673834680093,20.0,23.274,23.253,32.27]
[1673834680094,17.0,23.273,23.253,32.27]
[1673834680307,24.82,23.27,23.245,145.2935]
[1673834680637,20.0,23.268,23.245,145.2935]
[1673834680835,52.25,23.267,23.245,113.0135]
[1673834681046,37.0,23.266,23.245,113.0135]
[1673834681256,24.83,23.26,23.245,113.0135]
[1673834681473,20.0,23.259,23.245,113.0135]
[1673834681702,73.33753654,23.259,23.245,113.0135]
[1673834681910,57.58420321,23.258,23.245,113.0135]
[1673834682217,20.0,23.257,23.245,113.0135]
[1673834682424,20.0,23.257,23.237,32.29]
[1673834682645,89.84420321,23.256,23.236,20.0]
[1673834682839,32.26,23.256,23.236,20.0]
[1673834683881,32.26,23.256,23.238,20.0]
[1673834684201,32.26,23.256,23.239,17.0]
[1673834684827,20.0,23.255,23.235,109.899]
[1673834685145,24.83,23.25,23.23,32.3]
[1673834685362,24.83,23.25,23.23,109.899]
[1673834685565,20.0,23.249,23.23,109.899]
[1673834686307,20.0,23.249,23.231,20.0]
[1673834687034,20.0,23.253,23.231,20.0]
[1673834687253,32.27,23.252,23.232,117.0989]
[1673834687467,24.83,23.26,23.233,32.3]
[1673834687468,32.27,23.254,23.233,32.3]
[1673834687665,46.29196354,23.26,23.234,20.0]
[1673834687883,32.26,23.259,23.236,20.0]
[1673834688401,21.46196354,23.258,23.236,20.0]
[1673834688612,32.26,23.257,23.236,20.0]
[1673834688830,37.0,23.256,23.236,20.0]
[1673834689022,32.27,23.255,23.236,20.0]
[1673834689238,37.0,23.254,23.236,20.0]
[1673834689443,32.27,23.253,23.236,20.0]
[1673834689659,37.0,23.252,23.236,20.0]
[1673834689882,32.27,23.251,23.236,20.0]
[1673834690209,37.0,23.25,23.236,20.0]
[1673834690416,61.99,23.25,23.236,20.0]
[1673834690740,32.27,23.249,23.236,20.0]
[1673834691044,20.0,23.248,23.236,20.0]
[1673834691783,20.0,23.249,23.236,20.0]
[1673834692412,20.0,23.25,23.236,20.0]
[1673834692733,20.0,23.25,23.237,17.0]
[1673834692921,20.0,23.256,23.237,17.0]
[1673834693131,20.0,23.258,23.237,17.0]
[1673834693352,32.26,23.257,23.237,17.0]
[1673834693569,20.0,23.256,23.237,17.0]
[1673834693759,52.26,23.258,23.237,17.0]
[1673834694810,17.0,23.257,23.237,17.0]
[1673834695139,52.26,23.256,23.237,17.0]
[1673834695461,52.26,23.256,23.232,117.0989]
[1673834695462,38.46196354,23.255,23.232,117.0989]
[1673834695774,20.0,23.253,23.232,117.0989]
[1673834695989,24.99,23.25,23.232,117.0989]
[1673834696184,52.27,23.249,23.23,109.899]
[1673834696389,69.27,23.249,23.23,109.899]
[1673834696820,20.0,23.247,23.213,32.32]
[1673834697033,69.28,23.246,23.222,113.4199]
[1673834697241,20.0,23.245,23.223,20.0]
[1673834697440,49.28,23.244,23.223,20.0]
[1673834697650,20.0,23.243,23.223,20.0]
[1673834697860,49.28,23.242,23.223,20.0]
[1673834698286,20.0,23.241,23.223,20.0]
[1673834698612,32.29,23.24,23.223,20.0]
[1673834698836,20.0,23.239,23.219,32.32]
[1673834699031,49.29,23.238,23.219,110.4298]
[1673834699226,20.0,23.237,23.216,20.0]
[1673834699433,49.29,23.236,23.216,20.0]
[1673834699666,20.0,23.235,23.216,20.0]
[1673834699986,49.3,23.234,23.216,20.0]
[1673834700295,20.0,23.233,23.216,20.0]
[1673834700514,41.46196354,23.233,23.216,20.0]
[1673834700700,20.0,23.233,23.216,20.0]
[1673834700909,21.46196354,23.232,23.216,20.0]
[1673834701242,20.0,23.231,23.216,20.0]
[1673834701858,21.46196354,23.231,23.216,20.0]
[1673834702063,20.0,23.23,23.216,20.0]
[1673834702274,20.0,23.23,23.213,110.4298]
[1673834703027,21.46196354,23.231,23.213,110.4298]
[1673834703239,24.99,23.24,23.213,110.4298]
[1673834703240,94.12,23.23,23.213,110.4298]
[1673834703429,61.82,23.23,23.213,110.4298]
[1673834703972,32.3,23.229,23.213,110.4298]
[1673834704286,37.0,23.228,23.213,110.4298]
[1673834704494,58.46196354,23.228,23.213,110.4298]
[1673834704819,20.0,23.228,23.213,110.4298]
[1673834705005,20.0,23.229,23.213,110.4298]
[1673834705215,52.29,23.235,23.213,110.4298]
[1673834705450,20.0,23.235,23.214,17.0]
[1673834705756,20.0,23.235,23.216,20.0]
[1673834705963,24.99,23.24,23.217,49.32]
[1673834705964,20.0,23.239,23.217,49.32]
[1673834706155,20.0,23.239,23.218,20.0]
[1673834706371,20.0,23.239,23.219,49.32]
[1673834706580,20.0,23.239,23.22,20.0]
[1673834707018,20.0,23.239,23.222,20.0]
[1673834707244,20.0,23.245,23.223,32.31]
[1673834707442,24.99,23.24,23.223,32.31]
[1673834707657,24.99,23.24,23.224,17.0]
[1673834707853,20.0,23.239,23.222,20.0]
[1673834708068,21.46196354,23.239,23.222,20.0]
[1673834708282,17.0,23.238,23.221,110.0509]
[1673834708494,38.46196354,23.239,23.221,110.0509]
[1673834708705,17.0,23.239,23.221,110.0509]
[1673834708917,21.46196354,23.238,23.219,17.0]
[1673834709125,53.75196354,23.238,23.219,17.0]
[1673834709339,21.46196354,23.238,23.219,49.32]
[1673834709551,32.29,23.239,23.219,17.0]
[1673834709762,20.0,23.237,23.219,17.0]
[1673834709954,49.29,23.236,23.218,17.0]
[1673834710168,20.0,23.235,23.217,17.0]
[1673834710384,41.46196354,23.235,23.217,17.0]
[1673834710600,32.3,23.234,23.217,17.0]
[1673834710811,20.0,23.233,23.215,17.0]
[1673834711442,20.0,23.238,23.216,52.32]
[1673834711761,20.0,23.238,23.218,20.0]
[1673834711960,20.0,23.238,23.219,17.0]
[1673834713210,20.0,23.239,23.221,20.0]
[1673834713426,20.0,23.239,23.222,49.31]
[1673834713636,20.0,23.239,23.223,20.0]
[1673834713855,20.0,23.239,23.224,17.0]
[1673834714187,21.46196354,23.238,23.224,17.0]
[1673834714368,20.0,23.237,23.224,130.232]
[1673834714688,20.0,23.237,23.225,20.0]
[1673834714905,20.0,23.237,23.226,17.0]
[1673834715107,20.0,23.241,23.226,17.0]
[1673834715527,20.0,23.241,23.227,20.0]
[1673834715748,20.0,23.241,23.228,17.0]
[1673834716567,24.83,23.24,23.224,145.542]
[1673834716783,52.29,23.239,23.224,113.232]
[1673834717222,21.46196354,23.238,23.224,113.232]
[1673834717430,20.0,23.237,23.224,113.232]
[1673834717756,20.0,23.237,23.225,20.0]
[1673834718152,20.0,23.238,23.225,20.0]
[1673834718381,52.29,23.239,23.225,20.0]
[1673834718589,21.46196354,23.236,23.225,20.0]
[1673834718779,52.29,23.239,23.225,20.0]
[1673834718986,21.46196354,23.238,23.225,20.0]
[1673834719201,20.0,23.237,23.225,20.0]
[1673834719411,20.0,23.237,23.226,17.0]
[1673834719843,21.46196354,23.237,23.226,17.0]
[1673834720460,20.0,23.238,23.226,17.0]
[1673834720672,32.28,23.248,23.226,17.0]
[1673834720673,21.46196354,23.244,23.227,20.0]
[1673834720885,20.0,23.243,23.228,17.0]
[1673834721516,21.46196354,23.244,23.228,17.0]
[1673834721727,32.27,23.249,23.228,17.0]
[1673834721728,20.0,23.243,23.228,17.0]
[1673834722478,21.46196354,23.242,23.228,17.0]
[1673834722673,17.0,23.248,23.225,20.0]
[1673834722674,24.82,23.24,23.225,20.0]
[1673834722879,20.0,23.239,23.224,133.232]
[1673834723099,32.29,23.238,23.225,20.0]
[1673834723312,20.0,23.237,23.225,20.0]
[1673834723722,20.0,23.238,23.225,20.0]
[1673834723931,20.0,23.238,23.226,17.0]
[1673834724367,20.0,23.238,23.225,20.0]
[1673834724588,20.0,23.238,23.219,20.0]
[1673834724781,53.75196354,23.237,23.219,20.0]
[1673834724996,21.46196354,23.237,23.219,20.0]
[1673834725206,52.29,23.236,23.219,20.0]
[1673834725404,17.0,23.235,23.219,20.0]
[1673834725621,52.3,23.234,23.219,20.0]
[1673834725831,73.76196354,23.234,23.219,20.0]
[1673834726050,52.3,23.234,23.219,20.0]
[1673834726261,21.46196354,23.233,23.219,20.0]
[1673834726471,52.3,23.232,23.219,20.0]
[1673834726891,21.46196354,23.231,23.219,20.0]
[1673834727104,20.0,23.23,23.219,20.0]
[1673834727511,20.0,23.23,23.217,117.0397]
[1673834727719,44.82,23.23,23.217,117.0397]
[1673834727944,21.46196354,23.229,23.217,117.0397]
[1673834728373,20.0,23.228,23.218,20.0]
[1673834729111,20.0,23.228,23.217,117.0397]
[1673834729425,41.46196354,23.229,23.217,117.0397]
[1673834730033,20.0,23.229,23.21,117.1958]
[1673834730250,70.76196354,23.228,23.209,20.0]
[1673834730460,20.0,23.227,23.209,20.0]
[1673834730669,49.31,23.226,23.209,20.0]
[1673834730893,70.77196354,23.226,23.209,20.0]
[1673834731108,20.0,23.225,23.209,20.0]
[1673834731299,32.31,23.224,23.209,20.0]
[1673834731517,20.0,23.223,23.209,20.0]
[1673834731726,41.46196354,23.223,23.209,20.0]
[1673834732383,20.0,23.223,23.209,20.0]
[1673834732584,21.46196354,23.225,23.209,20.0]
[1673834732794,20.0,23.224,23.209,20.0]
[1673834733116,21.46196354,23.228,23.209,20.0]
[1673834733323,20.0,23.227,23.209,20.0]
[1673834733537,21.46196354,23.228,23.21,17.0]
[1673834733758,32.3,23.229,23.21,17.0]
[1673834734066,21.46196354,23.228,23.21,17.0]
[1673834735100,20.47214199,23.228,23.21,17.0]
[1673834735310,49.31,23.227,23.21,17.0]
[1673834735731,20.0,23.226,23.209,20.0]
[1673834735963,49.31,23.225,23.209,20.0]
[1673834736270,20.0,23.224,23.209,20.0]
[1673834736469,40.47214199,23.224,23.209,20.0]
[1673834736681,20.0,23.224,23.209,20.0]
[1673834736901,40.47214199,23.224,23.209,20.0]
[1673834737108,40.47214199,23.224,23.21,17.0]
[1673834737721,40.47214199,23.224,23.209,20.0]
[1673834739001,20.0,23.224,23.211,20.0]
[1673834739209,32.3,23.229,23.211,20.0]
[1673834739210,20.0,23.228,23.212,17.0]
[1673834740028,32.31,23.227,23.212,17.0]
[1673834740239,20.0,23.226,23.212,17.0]
[1673834740455,40.47214199,23.226,23.211,20.0]
[1673834740676,20.0,23.226,23.211,20.0]
[1673834741098,20.47214199,23.226,23.211,20.0]
[1673834741415,20.0,23.225,23.211,20.0]
[1673834741840,20.0,23.225,23.212,17.0]
[1673834742769,20.47214199,23.227,23.212,17.0]
[1673834742979,52.78214199,23.227,23.212,17.0]
[1673834743189,20.0,23.226,23.212,17.0]
[1673834743631,40.47214199,23.226,23.212,17.0]
[1673834743836,32.29,23.236,23.212,49.33]
[1673834744055,20.47214199,23.233,23.213,20.0]
[1673834744375,20.0,23.232,23.215,20.0]
[1673834744573,20.0,23.232,23.216,17.0]
[1673834745308,52.77214199,23.231,23.216,17.0]
[1673834745649,20.0,23.23,23.216,17.0]
[1673834746047,32.29,23.239,23.216,17.0]
[1673834746255,20.47214199,23.231,23.216,17.0]
[1673834746456,32.29,23.237,23.216,17.0]
[1673834746672,17.0,23.236,23.216,17.0]
[1673834747003,32.29,23.235,23.216,17.0]
[1673834747196,24.99,23.23,23.215,20.0]
[1673834747402,52.3,23.229,23.213,20.0]
[1673834747617,52.3,23.229,23.212,20.0]
[1673834747618,52.3,23.229,23.211,20.0]
[1673834747834,52.3,23.229,23.204,52.34]
[1673834748145,21.46196354,23.228,23.204,20.0]
[1673834748364,52.31,23.227,23.211,20.0]
[1673834749192,20.0,23.227,23.211,20.0]
[1673834749624,32.31,23.226,23.211,20.0]
[1673834750345,20.0,23.225,23.211,20.0]
[1673834750575,32.31,23.224,23.211,20.0]
[1673834750916,20.0,23.223,23.211,20.0]
[1673834751421,24.83,23.22,23.206,20.0]
[1673834751635,20.0,23.219,23.205,20.0]
[1673834752128,52.32,23.219,23.205,20.0]
[1673834752335,20.0,23.219,23.205,20.0]
[1673834752773,52.32,23.219,23.205,20.0]
[1673834753193,20.0,23.219,23.205,20.0]
[1673834753940,20.0,23.219,23.206,17.0]
[1673834754675,20.0,23.219,23.203,133.2868]
[1673834755082,32.32,23.218,23.199,117.4921]
[1673834755415,24.83,23.21,23.192,20.0]
[1673834755601,20.0,23.209,23.191,115.4936]
[1673834755806,32.32,23.217,23.191,115.4936]
[1673834756034,32.32,23.217,23.193,20.0]
[1673834756035,45.53356769,23.217,23.193,20.0]
[1673834756248,24.83,23.22,23.194,52.35]
[1673834756464,20.0,23.219,23.194,52.35]
[1673834756659,20.0,23.219,23.195,20.0]
[1673834756867,32.3,23.229,23.2,24.99]
[1673834757080,32.3,23.234,23.202,20.0]
[1673834757300,20.0,23.233,23.203,52.34]
[1673834757493,20.0,23.233,23.203,69.34]
[1673834757705,52.29,23.239,23.203,69.34]
[1673834758012,32.29,23.239,23.211,20.0]
[1673834758226,24.99,23.25,23.22,24.85]
[1673834758458,24.99,23.25,23.221,161.0253]
[1673834758459,32.27,23.249,23.221,161.0253]
[1673834758859,32.27,23.253,23.223,20.0]
[1673834759069,32.26,23.259,23.23,24.99]
[1673834759305,32.26,23.259,23.231,181.6]
[1673834759512,32.25,23.269,23.24,24.99]
[1673834759834,32.25,23.269,23.241,49.29]
[1673834760047,32.25,23.269,23.242,20.0]
[1673834760239,32.25,23.269,23.243,32.28]
[1673834760569,32.25,23.269,23.244,17.0]
[1673834760782,21.46196354,23.268,23.245,52.28]
[1673834761088,32.25,23.267,23.245,32.28]
[1673834761296,24.99,23.26,23.246,17.0]
[1673834761704,21.46196354,23.259,23.244,17.0]
[1673834761923,32.25,23.269,23.245,52.28]
[1673834762131,21.46196354,23.269,23.246,20.0]
[1673834762342,32.25,23.269,23.247,49.28]
[1673834762556,53.71196354,23.269,23.247,49.28]
[1673834762779,53.71196354,23.269,23.248,20.0]
[1673834762964,32.25,23.269,23.249,17.0]
[1673834763173,20.0,23.268,23.249,17.0]
[1673834763401,20.0,23.267,23.249,17.0]
[1673834763806,41.46196354,23.267,23.249,17.0]
[1673834764019,20.0,23.268,23.249,17.0]
[1673834764230,21.46196354,23.266,23.249,17.0]
[1673834764649,20.0,23.268,23.249,17.0]
[1673834765721,21.46196354,23.267,23.249,17.0]
[1673834766848,32.24,23.276,23.25,44.99]
[1673834767062,32.24,23.276,23.251,69.27]
[1673834767289,25.0,23.28,23.251,74.23256]
[1673834767290,32.23,23.279,23.251,74.23256]
[1673834767610,32.23,23.279,23.251,69.27]
[1673834767797,20.47214199,23.278,23.251,69.27]
[1673834768009,32.24,23.277,23.253,20.0]
[1673834768230,32.24,23.277,23.254,69.27]
[1673834768547,20.47214199,23.276,23.255,20.0]
[1673834768763,32.24,23.275,23.256,37.0]
[1673834768971,20.47214199,23.276,23.256,37.0]
[1673834769168,32.23,23.279,23.256,37.0]
[1673834769375,40.47214199,23.278,23.257,20.0]
[1673834769594,20.0,23.278,23.258,49.26]
[1673834769807,20.0,23.278,23.26,24.99]
[1673834770018,20.0,23.284,23.262,20.0]
[1673834770348,20.0,23.284,23.263,49.26]
[1673834770535,52.23,23.284,23.263,49.26]
[1673834771186,20.0,23.284,23.264,20.0]
[1673834771505,20.47214199,23.287,23.265,17.0]
[1673834771719,52.22,23.286,23.265,17.0]
[1673834772425,20.47214199,23.285,23.265,17.0]
[1673834772638,20.0,23.284,23.265,17.0]
[1673834772849,65.53356769,23.284,23.263,32.26]
[1673834773070,69.23,23.283,23.261,130.919]
[1673834773286,20.0,23.282,23.261,130.919]
[1673834773602,32.23,23.281,23.261,130.919]
[1673834773802,20.0,23.28,23.261,130.919]
[1673834774022,32.23,23.279,23.261,130.919]
[1673834774229,20.0,23.278,23.262,17.0]
[1673834774633,20.0,23.278,23.262,49.26]
[1673834774869,20.0,23.285,23.263,20.0]
[1673834775057,20.0,23.285,23.264,49.25]
[1673834775480,20.0,23.285,23.265,20.0]
[1673834775685,20.0,23.285,23.266,49.25]